bitfinex/quotes_ETHUSD_20250623
["timestamp","ask_amount","ask_price","bid_price","bid_amount"]
[1750689580035,17.76,2284.4,2284.1,4.37800064]
[1750689580275,17.76,2284.4,2284.1,4.37800058]
[1750689580476,17.76,2284.4,2284.1,4.37795212]
[1750689580674,17.76,2284.4,2284.1,4.3780199]
[1750689581041,17.76,2284.4,2284.2,4.37789882]
[1750689581262,17.76,2284.4,2284.1,4.37799368]
[1750689581463,17.76,2284.4,2284.2,4.37789648]
[1750689581970,17.76,2284.4,2284.3,4.3777087]
[1750689583603,17.76,2284.4,2284.1,7.869]
[1750689583891,19.6092,2284.4,2284.1,4.37808536]
[1750689584093,17.8332,2284.4,2284.2,4.37780562]
[1750689584394,17.8332,2284.4,2284.1,4.37799213]
[1750689584702,17.8332,2284.4,2284.0,4.37818744]
[1750689584867,17.8332,2284.4,2283.9,8.75678947]
[1750689585074,17.8332,2284.4,2284.0,4.37825626]
[1750689585269,18.87178084,2284.4,2284.1,4.37809188]
[1750689585696,18.87178084,2284.4,2283.9,4.37831617]
[1750689585900,18.87178084,2284.4,2283.8,7.867]
[1750689586060,18.87178084,2284.4,2284.0,4.37809868]
[1750689586261,18.87178084,2284.4,2284.1,4.3780845]
[1750689586561,18.87178084,2284.4,2284.0,4.37817067]
[1750689587075,17.8332,2284.4,2284.1,4.37805561]
[1750689588396,7.8332,2284.4,2284.2,4.37777996]
[1750689588894,7.8332,2284.4,2284.1,4.37798939]
[1750689589605,0.0732,2284.2,2282.8,1.0869]
[1750689589767,10.92712303,2283.7,2283.0,4.38007969]
[1750689590103,0.0732,2283.5,2283.1,4.37999765]
[1750689590287,7.8332,2283.5,2282.8,1.0869]
[1750689590486,7.8332,2283.5,2283.2,4.37970627]
[1750689590703,7.8332,2283.5,2283.3,4.37955212]
[1750689590860,7.8332,2283.5,2283.1,4.37992294]
[1750689591066,7.8332,2283.5,2282.9,4.38039335]
[1750689591067,13.69241951,2283.2,2282.7,4.38069365]
[1750689591290,13.69241951,2283.2,2282.3,1.1032]
[1750689591492,10.0,2283.0,2282.5,4.3809863]
[1750689591678,13.69241951,2282.9,2282.4,4.38124772]
[1750689591886,21.55241951,2282.9,2282.3,4.38152501]
[1750689592115,10.0732,2282.5,2282.2,0.2213009]
[1750689592298,20.96819761,2282.3,2282.2,0.2213009]
[1750689592608,0.0732,2282.1,2281.6,4.38278846]
[1750689592812,0.0732,2282.1,2281.7,4.38269465]
[1750689592992,0.0732,2282.1,2281.6,4.38282874]
[1750689593199,0.0732,2282.1,2281.5,1.1039]
[1750689593374,0.0732,2282.1,2281.7,4.3826641]
[1750689593578,0.0732,2282.1,2281.9,4.38220228]
[1750689593777,0.0732,2282.1,2281.9,4.38214245]
[1750689594065,0.0732,2282.1,2282.0,4.38212094]
[1750689594277,1.08052,2282.1,2281.3,13.35396556]
[1750689594514,11.08052,2282.1,2281.6,4.38273842]
[1750689594814,1.08052,2282.1,2281.3,8.9705]
[1750689595021,0.0732,2282.1,2282.0,4.38212094]
[1750689595173,0.0732,2282.1,2281.9,4.3821718]
[1750689595692,0.0732,2282.1,2281.3,13.35393035]
[1750689595865,0.0732,2282.1,2281.5,4.38295716]
[1750689596067,0.0732,2282.1,2281.6,4.38275041]
[1750689596282,0.0732,2282.1,2281.5,4.38295716]
[1750689596283,0.0732,2282.1,2281.7,4.38269269]
[1750689596476,0.0732,2282.1,2281.9,4.38227131]
[1750689596915,0.0732,2282.1,2281.8,4.38240421]
[1750689597275,0.0732,2282.1,2281.7,4.38259046]
[1750689597618,0.0732,2282.1,2281.5,4.38305719]
[1750689597774,10.0,2281.9,2281.5,4.38305719]
[1750689597970,1.41385966,2281.8,2281.3,4.38335353]
[1750689598275,0.0732,2281.7,2281.4,4.38323093]
[1750689598879,0.0732,2281.7,2280.9,12.24222436]
[1750689599077,0.0732,2281.7,2281.5,4.38289633]
[1750689599275,0.0732,2281.7,2281.3,4.38331389]
[1750689599476,12.00760597,2281.7,2281.1,4.38376529]
[1750689599695,7.856,2281.6,2281.0,4.38394474]
[1750689600005,10.0,2281.5,2281.0,4.38403538]
[1750689600207,10.0,2281.5,2281.1,4.38374632]
[1750689600419,2.00760597,2281.7,2280.7,4.38461875]
[1750689600703,2.18923448,2283.5,2280.7,4.38461875]
[1750689600704,0.0732,2282.3,2281.4,1.0645]
[1750689600903,0.0732,2282.5,2282.4,4.38135296]
[1750689601069,0.0732,2282.5,2282.3,4.38145895]
[1750689601276,0.0732,2282.5,2281.9,5.53951052]
[1750689601493,0.0732,2282.5,2282.4,4.38135296]
[1750689601774,10.0732,2282.8,2282.2,4.38163474]
[1750689601981,2.02192,2282.7,2282.1,4.38181566]
[1750689602303,13.42054834,2282.7,2282.2,4.38172514]
[1750689602611,10.0,2282.3,2281.9,4.38216356]
[1750689602779,20.96819761,2282.1,2281.6,4.38281033]
[1750689603084,0.55,2282.0,2281.4,4.38317247]
[1750689603281,0.55,2282.0,2281.5,4.38307128]
[1750689603481,0.55,2282.0,2281.5,4.38306809]
[1750689603694,2.271,2281.9,2281.8,4.38250503]
[1750689603908,1.0732,2282.2,2281.8,4.38250503]
[1750689603909,10.0,2282.1,2281.8,4.38250503]
[1750689604202,10.0,2282.1,2281.5,1.1047]
[1750689604203,10.0,2282.1,2281.5,4.38297226]
[1750689604408,10.0,2282.1,2281.4,4.38318498]
[1750689604810,0.55,2282.0,2281.2,1.1047]
[1750689605123,10.124,2282.0,2281.2,1.1047]
[1750689605289,2.271,2282.0,2281.5,4.38297217]
[1750689605615,2.271,2282.0,2281.5,4.38299744]
[1750689606133,10.0732,2281.8,2281.2,4.38358182]
[1750689606276,10.0732,2281.8,2281.4,4.38315635]
[1750689606475,10.0,2281.6,2281.3,4.38337118]
[1750689606715,17.76,2281.6,2281.2,4.38356308]
[1750689606917,17.76,2281.6,2281.3,4.38344988]
[1750689607283,17.76,2281.6,2280.9,1.1717]
[1750689607484,17.76,2281.6,2280.6,1.1717]
[1750689607485,10.0,2281.4,2280.6,1.1717]
[1750689607724,10.0,2281.4,2280.1,20.651]
[1750689607725,10.0,2281.2,2280.7,4.3844918]
[1750689607883,17.851,2281.2,2280.6,4.38472794]
[1750689608277,0.55,2281.1,2280.3,1.1717]
[1750689608505,10.0,2281.0,2280.6,4.38478954]
[1750689608815,10.0,2281.0,2280.3,5.55699584]
[1750689609110,10.0,2281.0,2280.7,4.38460599]
[1750689609328,10.0,2281.0,2280.7,4.3845367]
[1750689609524,10.0,2281.0,2280.8,4.38440955]
[1750689609729,0.0682,2281.6,2281.4,4.38327342]
[1750689609921,0.0682,2281.9,2281.6,4.38279919]
[1750689610216,18.29,2282.8,2281.5,4.38305766]
[1750689610217,0.0682,2282.1,2281.5,4.38305766]
[1750689610423,0.0682,2282.1,2281.9,4.38223408]
[1750689610622,0.0682,2282.1,2281.3,4.38345182]
[1750689610623,0.51441506,2282.1,2281.4,1.0711]
[1750689610924,10.0,2281.9,2281.6,4.38279649]
[1750689611217,12.01902,2281.9,2281.8,4.38250503]
[1750689611417,12.14002,2281.9,2281.5,4.38299767]
[1750689611713,12.14002,2281.9,2281.7,4.38261206]
[1750689611878,12.14002,2281.9,2281.6,4.38271231]
[1750689611879,2.01902,2281.9,2281.6,4.38271231]
[1750689612080,10.0,2281.9,2281.7,4.38265489]
[1750689612815,10.0,2281.9,2281.4,4.3831544]
[1750689612982,10.0,2281.9,2281.4,4.38319034]
[1750689613186,10.0,2281.9,2281.0,1.0711]
[1750689613387,7.76,2281.8,2281.7,4.38269711]
[1750689613627,17.76,2281.8,2281.7,4.38269711]
[1750689614006,0.0682,2281.6,2280.7,4.38445399]
[1750689614330,0.0682,2281.3,2280.1,1.1669]
[1750689614518,10.0,2281.1,2280.1,16.52083189]
[1750689614705,9.5,2281.1,2280.7,4.38450798]
[1750689615020,9.5,2281.1,2280.1,5.5526006]
[1750689615021,17.26,2281.1,2280.1,5.5526006]
[1750689615186,0.0682,2281.0,2280.2,0.59935945]
[1750689615519,10.118,2280.9,2280.1,1.1669]
[1750689615818,0.0682,2281.0,2280.1,1.1669]
[1750689616021,0.0682,2281.0,2280.9,4.38423429]
[1750689616240,7.76,2281.0,2280.9,4.38423429]
[1750689616409,7.8282,2281.4,2281.3,4.38346556]
[1750689616813,17.76,2281.4,2281.3,4.38346556]
[1750689617000,7.76,2281.4,2281.3,4.38346556]
[1750689617524,0.0682,2281.9,2281.4,4.38327342]
[1750689617733,0.0682,2281.9,2281.5,4.38295435]
[1750689617931,0.0682,2281.9,2281.0,4.38404208]
[1750689618105,0.0682,2281.9,2281.2,4.38365772]
[1750689618308,0.0682,2281.9,2281.3,4.38328818]
[1750689618495,0.0682,2281.9,2281.4,4.38325403]
[1750689619027,0.0682,2281.9,2281.1,1.0672]
[1750689619236,12.77187298,2282.2,2281.5,4.38299486]
[1750689619536,1.03954005,2282.1,2281.4,4.38314287]
[1750689619896,1.03954005,2282.1,2281.5,4.3830794]
[1750689620091,1.03954005,2282.1,2281.2,4.38365772]
[1750689620430,1.03954005,2282.1,2281.6,4.38277516]
[1750689620431,0.0682,2282.0,2281.6,4.38277516]
[1750689620842,0.0682,2282.0,2281.7,4.38260223]
[1750689621021,10.0682,2282.2,2281.8,4.38241529]
[1750689621209,7.76,2282.3,2282.1,4.38192892]
[1750689621542,0.0682,2282.5,2281.8,5.5131977]
[1750689621740,0.0682,2282.5,2282.1,4.38184206]
[1750689621940,0.0682,2282.5,2282.2,4.38157211]
[1750689622236,10.54920484,2282.8,2282.3,4.38144112]
[1750689622435,10.54920484,2282.8,2282.4,4.38133396]
[1750689622436,1.04300893,2282.7,2282.4,4.38133396]
[1750689622635,10.54920484,2282.8,2282.4,4.38133396]
[1750689622807,11.03827924,2282.8,2282.3,4.38138582]
[1750689623003,11.03827924,2282.8,2282.2,4.38159883]
[1750689623429,11.03827924,2282.8,2282.3,4.38153376]
[1750689623649,10.0,2282.7,2282.0,4.38212094]
[1750689623809,7.76,2282.8,2282.1,1.1719]
[1750689624214,9.59738475,2282.8,2282.1,1.1719]
[1750689624417,9.59738475,2282.8,2282.3,4.38151501]
[1750689624713,7.76,2282.8,2282.5,4.38102499]
[1750689625026,7.76,2282.8,2282.4,4.38124771]
[1750689625466,7.76,2282.8,2282.2,4.38166978]
[1750689625611,7.76,2282.8,2282.4,4.38117275]
[1750689625813,7.76,2282.8,2282.5,4.3811472]
[1750689626012,7.76,2282.8,2282.4,4.38125744]
[1750689626361,7.76,2282.8,2282.5,4.38099288]
[1750689626568,10.0682,2283.0,2282.9,4.38039335]
[1750689626728,0.0682,2283.3,2282.6,1.0796]
[1750689626912,0.6182,2283.3,2282.2,1.0796]
[1750689627113,0.6182,2283.3,2282.6,4.38095242]
[1750689627425,1.16603855,2283.2,2282.7,4.38066161]
[1750689627620,0.6182,2283.3,2282.4,4.38135296]
[1750689627621,0.0682,2283.3,2282.4,4.38135296]
[1750689627822,7.8282,2283.3,2282.7,4.38075773]
[1750689628025,0.55,2283.2,2282.6,4.38089298]
[1750689628235,0.44770881,2283.2,2282.7,4.38073065]
[1750689628451,17.8282,2283.3,2282.6,4.38087851]
[1750689628758,10.0,2283.1,2282.8,4.38049714]
[1750689629253,10.0,2283.1,2282.4,4.3813503]
[1750689629460,10.0,2283.1,2282.8,4.38049987]
[1750689629754,10.0,2283.1,2282.7,4.38067212]
[1750689630057,10.0,2283.1,2282.6,4.380837]
[1750689630256,0.0682,2282.9,2282.2,1.0796]
[1750689630455,10.0,2282.8,2282.4,4.38125493]
[1750689630958,7.8282,2282.9,2282.8,4.38058524]
[1750689630959,7.76,2282.9,2282.8,4.38058524]
[1750689631146,10.0,2282.9,2282.8,4.38058524]
[1750689631615,7.8282,2283.2,2282.7,4.38076416]
[1750689631616,10.0,2283.1,2283.0,4.38003139]
[1750689631816,7.76,2283.2,2283.1,4.38000963]
[1750689632248,7.8282,2283.5,2283.0,4.38003139]
[1750689632448,7.76,2283.5,2283.4,4.37943417]
[1750689632721,7.76,2284.2,2283.9,4.37838991]
[1750689632916,7.76,2284.2,2283.5,4.37924239]
[1750689632917,0.0682,2284.4,2283.5,6.65122226]
[1750689633155,0.0682,2284.4,2283.8,1.1228]
[1750689633354,0.0682,2284.4,2284.2,4.37774575]
[1750689633675,10.0682,2284.4,2284.1,4.3779958]
[1750689633978,1.85102,2284.4,2284.1,4.37807201]
[1750689634275,10.0682,2284.4,2283.5,10.085]
[1750689634434,10.0682,2284.4,2283.7,4.37885886]
[1750689634639,0.0682,2284.4,2283.8,4.37866301]
[1750689634842,10.0682,2284.4,2284.2,4.37789203]
[1750689635037,2.33282,2284.3,2283.6,4.37891323]
[1750689635238,2.33282,2284.3,2283.7,4.37872842]
[1750689635452,1.78282,2284.3,2283.3,10.084]
[1750689635757,1.78282,2284.3,2283.9,4.37845343]
[1750689635960,1.78282,2284.3,2283.8,4.378607]
[1750689636160,11.51819761,2283.9,2282.8,1.1066]
[1750689636365,10.0,2283.8,2282.8,1.1066]
[1750689636548,0.55,2283.9,2283.4,4.37931534]
[1750689636725,0.55,2283.9,2283.3,4.37952536]
[1750689636928,0.55,2283.9,2283.4,4.37943109]
[1750689637129,0.55,2283.9,2283.2,12.2048164]
[1750689637467,12.15329961,2284.2,2282.6,2.255]
[1750689637468,0.55,2283.5,2282.6,2.255]
[1750689637628,0.55,2283.5,2282.7,4.38077714]
[1750689638027,0.55,2283.5,2283.0,4.38008638]
[1750689638338,0.55,2283.5,2283.0,4.38008309]
[1750689638740,0.0682,2283.6,2282.9,4.38039335]
[1750689638936,0.0682,2283.6,2282.8,1.0861]
[1750689638937,0.0682,2283.6,2283.2,4.37979407]
[1750689639266,10.55,2283.5,2282.8,4.38057072]
[1750689639465,2.15863976,2283.4,2282.7,6.63567617]
[1750689639667,2.15863976,2283.4,2282.8,4.38058443]
[1750689639851,2.15863976,2283.4,2282.7,2.255]
[1750689640052,0.55,2283.4,2282.8,2.255]
[1750689640368,10.0,2283.5,2282.8,6.63558509]
[1750689640568,0.0682,2283.6,2282.8,3.3411]
[1750689640772,1.258402,2284.2,2283.1,1.0861]
[1750689640967,1.258402,2284.2,2283.7,4.37885842]
[1750689641268,0.0733,2284.2,2283.6,2.255]
[1750689641460,0.0733,2284.2,2283.8,4.37852638]
[1750689641771,0.0733,2284.2,2283.7,2.255]
[1750689641968,0.55,2284.1,2283.5,2.255]
[1750689642131,0.55,2284.1,2283.5,6.63424231]
[1750689642471,10.0,2284.0,2283.7,4.37870051]
[1750689642835,10.0,2284.0,2283.6,4.3789396]
[1750689643163,10.0,2284.0,2283.5,2.255]
[1750689643371,10.0,2284.0,2283.5,6.63414786]
[1750689643667,7.76,2283.9,2283.4,2.255]
[1750689643869,9.80691498,2283.9,2283.4,4.37926678]
[1750689644174,9.80691498,2283.9,2283.5,4.37908084]
[1750689644376,9.80691498,2283.9,2283.4,4.37934206]
[1750689644533,9.80691498,2283.9,2283.5,4.37923633]
[1750689644866,9.80691498,2283.9,2283.2,4.37966274]
[1750689645064,1.00070887,2283.8,2283.4,4.37942406]
[1750689645377,1.00070887,2283.8,2283.6,4.37901484]
[1750689645378,0.0733,2283.8,2283.6,4.37901484]
[1750689645541,7.76,2283.9,2283.4,4.37943417]
[1750689645762,7.76,2283.9,2283.3,10.076]
[1750689646060,0.0733,2283.7,2283.2,4.37973955]
[1750689646258,0.0733,2283.7,2283.4,4.37925763]
[1750689646507,10.0,2283.8,2283.2,4.37981779]
[1750689646649,10.0,2283.8,2283.6,4.37897065]
[1750689646846,10.0,2283.8,2283.4,4.37941583]
[1750689647601,10.0,2283.8,2283.2,4.37975706]
[1750689647885,0.0733,2283.6,2283.1,4.3799055]
[1750689648073,0.0733,2283.6,2283.2,4.37978236]
[1750689648273,0.0733,2283.6,2283.3,4.37961977]
[1750689648274,2.23244976,2283.6,2283.3,4.37961977]
[1750689648452,0.0733,2283.6,2283.3,4.37947593]
[1750689648785,7.76,2283.5,2282.8,4.38058524]
[1750689648946,7.76,2283.5,2283.2,4.37971959]
[1750689649154,7.76,2283.5,2283.0,4.3801138]
[1750689649784,10.96819761,2283.3,2282.4,8.95859215]
[1750689649957,0.0733,2282.8,2282.4,13.33983357]
[1750689650160,0.0733,2282.8,2282.4,8.95859215]
[1750689650161,7.8333,2282.8,2282.4,8.95859215]
[1750689650472,0.55,2282.7,2282.0,1.1471]
[1750689650671,0.55,2282.7,2281.7,1.1471]
[1750689650672,18.31,2282.7,2281.7,1.1471]
[1750689650887,10.0,2281.9,2281.0,2.464268]
[1750689651193,0.0733,2281.8,2281.2,4.38349381]
[1750689651396,0.55,2281.7,2281.2,4.38363963]
[1750689651551,0.0733,2281.8,2281.1,7.817]
[1750689651759,0.0733,2281.8,2281.3,4.38337064]
[1750689652197,0.55,2281.7,2281.2,4.3835741]
[1750689652569,1.70914976,2281.7,2281.0,0.4719268]
[1750689652770,10.55,2281.5,2281.0,4.38402697]
[1750689653079,10.55,2281.5,2281.0,4.38385096]
[1750689653601,0.55,2281.6,2281.1,4.38374905]
[1750689653801,0.55,2281.6,2281.1,4.38384688]
[1750689654156,0.55,2281.6,2281.2,4.38356119]
[1750689654378,1.72824498,2281.6,2281.2,4.38356119]
[1750689654756,1.72824498,2281.6,2281.3,4.38342424]
[1750689654954,0.0733,2281.8,2281.7,4.38269711]
[1750689655268,0.0733,2282.4,2281.6,4.3828892]
[1750689655470,0.0733,2282.4,2281.9,4.3822131]
[1750689655656,0.0733,2282.4,2282.3,4.38154493]
[1750689655855,0.0733,2283.0,2281.9,2.256]
[1750689656103,3.49658776,2283.0,2282.4,4.38133607]
[1750689656278,2.17904976,2283.0,2282.2,4.38173692]
[1750689656479,2.17904976,2283.0,2282.5,4.38101251]
[1750689656922,12.17904976,2283.0,2282.5,4.38101251]
[1750689657098,2.17904976,2283.0,2282.5,4.38104012]
[1750689657268,11.5842232,2282.9,2282.5,4.38104012]
[1750689657464,11.5842232,2282.9,2282.1,12.19887645]
[1750689657795,1.5842232,2282.9,2282.5,4.38107146]
[1750689658683,1.5842232,2282.9,2282.2,4.38173692]
[1750689658883,12.17904976,2283.0,2282.6,4.38086732]
[1750689659117,12.17904976,2283.0,2282.7,4.38068177]
[1750689659488,0.0733,2283.0,2282.1,7.817]
[1750689659704,0.0733,2283.4,2283.0,4.38009592]
[1750689660023,0.55,2283.3,2282.9,4.38029296]
[1750689660180,0.0733,2283.4,2282.9,4.38026629]
[1750689660381,0.0733,2283.4,2282.7,4.3806846]
[1750689660382,10.0,2283.1,2282.7,4.3806846]
[1750689660595,0.55,2283.3,2282.9,4.38023768]
[1750689660797,10.0,2283.2,2282.8,4.38041453]
[1750689661119,2.70914976,2283.3,2282.8,4.38041453]
[1750689661120,0.55,2283.3,2282.8,4.38041453]
[1750689661318,0.55,2283.3,2282.9,4.38036668]
[1750689661619,0.55,2283.3,2282.9,4.38038483]
[1750689661984,0.55,2283.3,2282.6,4.38096907]
[1750689662187,1.61233,2283.3,2282.9,4.38022964]
[1750689662421,1.06233,2283.3,2283.1,4.37996701]
[1750689662612,0.0733,2283.4,2282.9,4.38029197]
[1750689662613,0.0733,2283.4,2283.0,4.38006032]
[1750689662795,0.0733,2283.4,2282.2,1.1776]
[1750689662996,0.55,2282.9,2282.2,4.38171757]
[1750689663197,10.0,2282.6,2281.9,7.815]
[1750689663414,8.7397807,2282.9,2281.9,7.815]
[1750689663415,17.76,2282.9,2282.8,4.38058524]
[1750689663908,17.76,2282.9,2282.4,5.52364135]
[1750689663909,19.54333,2282.9,2282.5,4.38103678]
[1750689664111,17.76,2282.9,2282.4,4.38135296]
[1750689664619,17.76,2282.9,2282.1,1.0823]
[1750689664920,17.76,2282.9,2282.5,4.38114042]
[1750689665120,17.76,2282.9,2282.4,4.38123472]
[1750689665321,10.55,2282.8,2282.1,8.8973]
[1750689665522,10.96819761,2282.4,2281.7,4.38257539]
[1750689665820,10.96819761,2282.4,2282.0,4.38200668]
[1750689666221,10.96819761,2282.4,2281.9,4.38220398]
[1750689666397,0.0733,2282.5,2281.6,4.3828892]
[1750689666592,0.0733,2282.5,2282.1,4.38185508]
[1750689666789,10.0,2282.4,2281.9,4.38220201]
[1750689667000,10.0,2282.4,2282.0,4.38211728]
[1750689667415,10.0,2282.4,2282.1,4.38188735]
[1750689667912,10.0,2282.4,2282.1,4.38189582]
[1750689668298,7.76,2282.3,2282.2,4.38173692]
[1750689668499,7.76,2282.4,2282.3,4.38154493]
[1750689668828,7.8333,2283.1,2282.8,4.38047686]
[1750689669028,10.0,2283.0,2282.8,4.38047686]
[1750689669238,10.0,2283.0,2282.9,4.38039335]
[1750689669533,0.52143099,2283.5,2282.7,1.0984]
[1750689669713,1.37376286,2283.4,2282.8,4.38042285]
[1750689670029,1.37376286,2283.4,2282.9,4.38038638]
[1750689670598,10.0,2283.2,2282.7,4.38065057]
[1750689670938,10.0,2283.2,2282.8,4.38058504]
[1750689671530,10.0,2283.2,2282.9,4.38039196]
[1750689671830,10.0,2283.2,2282.9,4.38027748]
[1750689672027,10.0,2283.2,2283.1,4.38000963]
[1750689672230,10.0,2283.2,2282.5,7.813]
[1750689672403,10.0,2283.2,2279.9,11.46956223]
[1750689672404,10.0,2283.0,2282.2,0.9851]
[1750689672597,10.0,2283.0,2282.6,4.38088102]
[1750689672794,10.0,2283.0,2282.8,4.38043571]
[1750689673017,7.76,2283.1,2283.0,4.38020148]
[1750689673192,17.76,2283.1,2283.0,4.38020148]
[1750689673408,17.76,2283.1,2282.2,8.7971]
[1750689673725,19.536,2283.1,2282.7,4.38060077]
[1750689674031,19.536,2283.1,2282.8,4.38055503]
[1750689674435,19.536,2283.1,2282.9,4.38038345]
[1750689674609,17.76,2283.1,2283.0,4.38020148]
[1750689675001,17.76,2283.1,2282.9,4.38031326]
[1750689675629,17.76,2283.1,2282.9,8.76054452]
[1750689675935,17.76,2283.1,2283.0,4.38020148]
[1750689676933,7.76,2283.8,2283.4,4.37943417]
[1750689677130,10.057,2284.1,2283.3,4.37951576]
[1750689677296,11.51819761,2283.9,2283.2,4.37966853]
[1750689677502,11.51819761,2283.9,2283.3,4.37953942]
[1750689677797,10.4954703,2284.1,2283.3,4.37953942]
[1750689677798,2.6854703,2284.1,2283.6,4.37892085]
[1750689678012,1.36536679,2284.0,2283.6,4.37887943]
[1750689678218,10.007,2284.1,2283.7,4.37868465]
[1750689678412,7.76,2284.1,2283.9,4.37840139]
[1750689678627,7.76,2284.3,2284.0,4.37820984]
[1750689678818,7.76,2284.3,2283.9,4.37834306]
[1750689679212,10.0,2284.2,2283.7,7.809]
[1750689679618,10.0,2284.2,2283.8,4.37865896]
[1750689680509,10.0,2284.2,2284.0,4.37813393]
[1750689680706,10.0,2284.2,2283.9,4.37844006]
[1750689681504,10.0,2284.2,2284.0,4.37818053]
[1750689681711,10.0,2284.2,2283.9,4.37838435]
[1750689682040,10.0,2284.2,2283.7,12.18772082]
[1750689682041,7.76,2284.3,2283.8,4.37853481]
[1750689682244,7.76,2284.3,2283.7,7.809]
[1750689682447,7.76,2284.6,2284.3,4.37758219]
[1750689682612,10.55,2284.8,2284.3,4.37758219]
[1750689682812,10.55,2284.8,2284.1,4.37800274]
[1750689682813,0.55,2284.8,2284.2,4.37781148]
[1750689683023,0.55,2284.8,2284.3,4.37766504]
[1750689683310,0.55,2284.8,2284.2,4.37778671]
[1750689683311,13.98311976,2284.8,2284.2,4.37778671]
[1750689683515,13.98311976,2284.8,2284.3,4.37761922]
[1750689683937,7.76,2284.7,2283.8,2.247]
[1750689684140,10.55,2284.6,2283.5,10.0]
[1750689684342,10.0,2284.5,2283.5,7.804]
[1750689684550,10.0,2284.5,2283.8,4.37857752]
[1750689684918,10.0,2284.5,2283.5,7.804]
[1750689684919,10.96819761,2284.3,2283.5,7.804]
[1750689685115,0.55,2284.4,2283.8,4.37854844]
[1750689685443,2.11931198,2284.6,2283.9,0.9109]
[1750689685648,11.51819761,2284.5,2283.7,4.3787702]
[1750689685845,11.51819761,2284.5,2283.6,4.37894245]
[1750689685846,10.96819761,2284.2,2283.6,4.37894245]
[1750689686013,0.55,2284.3,2283.8,4.3785512]
[1750689686210,0.55,2284.3,2283.4,7.804]
[1750689686414,1.055,2284.2,2283.6,4.37892338]
[1750689686614,1.055,2284.2,2283.5,4.3791812]
[1750689686847,1.055,2284.2,2283.7,4.37885294]
[1750689687951,12.02319761,2284.2,2283.6,4.37892275]
[1750689688120,12.02319761,2284.2,2283.6,4.37891048]
[1750689688318,12.02319761,2284.2,2283.7,4.37871096]
[1750689688664,12.02319761,2284.2,2283.5,4.37918757]
[1750689688665,1.25731976,2284.1,2283.5,4.37918757]
[1750689688817,1.25731976,2284.1,2283.5,4.37915622]
[1750689689159,1.25731976,2284.1,2283.0,2.247]
[1750689689160,10.96819761,2283.6,2283.0,5.36973633]
[1750689689322,10.96819761,2283.6,2283.2,4.37971068]
[1750689689712,10.96819761,2283.6,2283.1,4.379911]
[1750689689928,10.96819761,2283.6,2283.1,4.3799102]
[1750689690128,0.55,2283.8,2283.3,4.37953889]
[1750689690935,0.55,2283.8,2283.2,4.37970947]
[1750689691133,0.55,2283.8,2283.3,4.37961937]
[1750689691443,0.55,2283.8,2283.3,4.37944763]
[1750689691640,20.96819761,2283.9,2283.3,4.37944763]
[1750689691840,24.19554935,2283.9,2283.0,0.9896]
[1750689692151,24.19554935,2283.9,2283.4,4.37936088]
[1750689692655,24.19554935,2283.9,2283.3,4.37952149]
[1750689692955,24.19554935,2283.9,2283.3,4.37962586]
[1750689693561,24.19554935,2283.9,2283.3,4.37946855]
[1750689693745,24.19554935,2283.9,2283.4,4.37932671]
[1750689693931,24.19554935,2283.9,2283.3,4.37950667]
[1750689694133,24.19554935,2283.9,2283.1,4.38000963]
[1750689694360,3.42435494,2283.8,2283.2,4.37981779]
[1750689694857,10.96819761,2283.6,2282.9,4.38030722]
[1750689695152,10.96819761,2283.6,2283.0,4.38012573]
[1750689695340,10.96819761,2283.6,2282.9,4.38021655]
[1750689695544,13.62044005,2283.6,2283.1,4.38000083]
[1750689696643,10.0,2283.7,2283.1,4.37989954]
[1750689697274,10.0,2283.7,2283.0,4.38003993]
[1750689697674,10.0,2283.7,2283.1,4.37998551]
[1750689698058,11.51819761,2283.6,2282.7,0.9209]
[1750689698267,10.96819761,2283.3,2282.6,4.38087319]
[1750689698547,10.96819761,2283.3,2282.8,4.38044944]
[1750689698782,10.96819761,2283.3,2282.7,4.38066364]
[1750689699639,10.96819761,2283.3,2282.8,4.38058321]
[1750689700081,10.96819761,2283.3,2282.7,4.38068186]
[1750689700249,10.96819761,2283.3,2282.5,10.526]
[1750689700250,10.96819761,2283.0,2282.2,4.38165169]
[1750689700450,10.96819761,2282.7,2281.9,4.38221019]
[1750689700644,10.96819761,2282.1,2281.3,0.942]
[1750689700839,10.96819761,2281.8,2281.0,0.942]
[1750689701064,10.96819761,2281.5,2280.8,2.239]
[1750689701269,10.96819761,2281.5,2280.9,0.36598825]
[1750689701450,10.96819761,2281.5,2281.1,4.3837368]
[1750689701872,10.96819761,2281.5,2281.1,4.38384395]
[1750689702314,18.76419761,2281.8,2281.1,4.38370107]
[1750689702508,18.76419761,2281.8,2280.9,4.75020208]
[1750689702677,18.76419761,2281.8,2281.3,4.38334618]
[1750689702678,10.21916898,2281.8,2281.3,4.38334618]
[1750689702879,10.0,2281.8,2281.2,4.38357082]
[1750689703350,10.0,2281.8,2281.3,4.38335366]
[1750689703682,0.22458328,2282.4,2281.6,4.38278357]
[1750689703887,0.55,2282.1,2281.4,4.38316993]
[1750689704119,10.0,2282.0,2281.4,4.38316993]
[1750689704289,10.96819761,2281.7,2281.1,4.38376417]
[1750689704492,10.96819761,2281.7,2281.2,4.38365212]
[1750689704894,10.96819761,2281.7,2281.2,4.38364072]
[1750689705216,10.96819761,2281.7,2281.3,4.38346501]
[1750689705417,20.96819761,2282.0,2281.1,4.38384989]
[1750689705619,10.0,2282.0,2281.3,0.4383465]
[1750689705818,20.96819761,2282.0,2281.2,4.3835757]
[1750689706017,0.55,2281.9,2281.0,4.38404208]
[1750689706223,0.55,2281.9,2281.2,4.38357247]
[1750689706437,20.96819761,2282.0,2281.0,4.38404208]
[1750689706580,10.96819761,2282.3,2281.8,4.38241201]
[1750689706786,10.0,2282.1,2281.8,4.38241201]
[1750689706981,10.0,2282.1,2281.4,0.9524]
[1750689707186,7.76,2282.2,2281.5,4.3830813]
[1750689707519,10.036,2282.4,2281.4,8.7484]